{"text_format":"1","workbook":"xlsx","n_sheets":4,"sheets":["SampMeans","Sheet2","Sheet3","Sheet4"],"not_rendered":{"charts":2,"images":7,"macros":1,"external_links":0,"defined_names":15,"comments":1,"pivot_tables":0},"unopened":[],"bounds":{"document_bytes":16777216,"sheet_cells":100000,"rows_first":2000,"rows_last":500,"rows_between":2000,"halvings":0,"cell_chars":16384,"cell_head_chars":4096},"cells_cut":0,"cells_raw":0,"read":"whole","date_system":"1900"}

{"sheet":"SampMeans","index":0,"n_rows":42,"n_cols":6,"rows_kept":42,"cut":false,"hidden":false,"merged":[]}
[null,"   Simulating the Central Limit Theorem"]
[]
[null,null,"    This program simulates the distribution of"]
[null,null,"   sample means based on repeated samples"]
[null,null,"  drawn from a variety of population patterns"]
[]
["Which population do you want?",null,null,{"$f":"IF(E7=TRUE, 1,IF(E8=TRUE, 2,IF(E9=TRUE,3,4)))","v":2},false]
[null,null,null,null,true]
[null,null,null,null,false]
[null,null,null,null,false]
[]
["What is the sample size n (2-50)?",null,null,{"$f":"E12","v":17},17]
[]
["How many samples (50-250)?",null,null,{"$f":"E14","v":134},134]
[]
[]
["The mean and standard deviation ",null,null,null,"  m =     ",{"$f":"IF(pop=1,Sheet2!B2,IF(pop=2,Sheet2!E2,IF(pop=3,Sheet2!G2,Sheet2!I2)))","v":68.47}]
[null,"of this population are:",null,null,"  s =",{"$f":"IF(pop=1,Sheet2!B3,IF(pop=2,Sheet2!E3,IF(pop=3,Sheet2!G3,Sheet2!I3)))","v":4.1619999999999999}]
[]
[{"$f":"\"On \"&TEXT(flips,\"0\")&\" samples of size \"&TEXT(\"n\",\"\")&\"  = \"&TEXT(n,\"0\")& \" from the \" &TEXT(pop_name,\"\")& \" population:\"","v":"On 134 samples of size n  = 17 from the uniform population:"}]
[null,{"$f":"\"The average of the sample means =\"","v":"The average of the sample means ="},null,null,null,{"$f":"SUM(Sheet2!O1:O1000)/flips","v":68.584723441615481}]
[null,"The corresponding standard deviation =",null,null,null,{"$f":"Sheet2!S25","v":0.98112268447141227}]
[]
[]
[null,null,null,1]
[]
[]
["Click each item below for suggestions and investigations"]
[null,null,"   Item 1"]
[null,null,"   Item 2"]
[null,null,"   Item 3"]
[null,null,"   Item 4"]
[null,null,"   Item 5"]
[null,null,"   Item 6"]
[]
[]
[]
["Created by:  Sheldon P. Gordon   &   Florence S. Gordon"]
["                  Farmingdale State College      NYIT"]
["Development of this module was supported by the "]
["NSF's Division of Undergraduate Education  "]
["under grants DUE-0310123 and DUE-0442160."]

{"sheet":"Sheet2","index":1,"n_rows":1000,"n_cols":24,"rows_kept":1000,"cut":false,"hidden":false,"merged":[]}
[null,"Normal data",null,null,"Uniform data",null,"U-shaped",null,"Skewed data",null,null,null,null,1,{"$f":"IF(N1<=flips,sampmean(n,pop,popsize,newsample),\"\")","v":68.588235294117652},{"$f":"IF(N1<=flips,O1^2,0)","v":4704.3460207612461},null,null,null,null,"freq","%","Bin","Frequency"]
["mu, sigma,n=",68.069999999999993,null,null,68.47,null,68.61,null,71.19,null,null,null,null,2,67.941176470588232,4616.0034602076121,null,null,null,null,{"$f":"COUNTIF(O1:O1000,\"=61\")","v":0},{"$f":"100*U2/flips","v":0},60.5,{"$f":"COUNTIF(O$1:O$1000,\"<61.5\")","v":0}]
[null,2.762,null,null,4.1619999999999999,null,4.8010000000000002,null,3.2909999999999999,null,null,null,null,3,70.411764705882348,4957.8166089965389,null,null,"For Pop'n Histogram",null,{"$f":"COUNTIF(O1:O1000,\"=1\")","v":0},0,61.5,{"$f":"COUNTIF(O$1:O$1000,\"<=62.5\")-SUM(X$2:X2)","v":0}]
[null,210,null,null,424,null,397,null,410,null,null,null,null,4,68,4624,null,null,"      Pop Freqs",null,{"$f":"COUNTIF(O1:O1000,\"=2\")","v":0},0,62.5,{"$f":"COUNTIF(O$1:O$1000,\"<=63.5\")-SUM(X$2:X3)","v":0}]
[1,61,61,4,61,{"$f":"COUNTIF(E$5:E$502,\"=61\")","v":23},61,{"$f":"COUNTIF(G$5:G$502,\"=61\")","v":18},61,{"$f":"COUNTIF(I$5:I$502,\"=61\")","v":3},null,null,null,5,68.529411764705884,4696.2802768166093,null,null,61,{"$f":"IF(pop=1,Sheet2!D5,IF(pop=2,Sheet2!F5,IF(pop=3,Sheet2!H5,Sheet2!J5)))","v":23},{"$f":"COUNTIF(O$1:O$1000,\"=3\")","v":0},0,63.5,{"$f":"COUNTIF(O$1:O$1000,\"<=64.5\")-SUM(X$2:X4)","v":0}]
[2,61,62,12,61,{"$f":"COUNTIF(E$5:E$502,\"=62\")","v":28},61,{"$f":"COUNTIF(G$5:G$502,\"=62\")","v":22},61,{"$f":"COUNTIF(I$5:I$502,\"=62\")","v":5},null,null,null,6,67.235294117647058,4520.584775086505,null,null,62,{"$f":"IF(pop=1,Sheet2!D6,IF(pop=2,Sheet2!F6,IF(pop=3,Sheet2!H6,Sheet2!J6)))","v":28},{"$f":"COUNTIF(O$1:O$1000,\"=4\")","v":0},0,64.5,{"$f":"COUNTIF(O$1:O$1000,\"<=65.5\")-SUM(X$2:X5)","v":0}]
[3,62,63,6,61,{"$f":"COUNTIF(E$5:E$502,\"=63\")","v":19},61,{"$f":"COUNTIF(G$5:G$502,\"=63\")","v":35},61,{"$f":"COUNTIF(I$5:I$502,\"=63\")","v":6},null,null,null,7,68.529411764705884,4696.2802768166093,null,null,63,{"$f":"IF(pop=1,Sheet2!D7,IF(pop=2,Sheet2!F7,IF(pop=3,Sheet2!H7,Sheet2!J7)))","v":19},{"$f":"COUNTIF(O$1:O$1000,\"=5\")","v":0},0,65.5,{"$f":"COUNTIF(O$1:O$1000,\"<=66.5\")-SUM(X$2:X6)","v":1}]
[4,62,64,16,61,{"$f":"COUNTIF(E$5:E$502,\"=64\")","v":24},61,{"$f":"COUNTIF(G$5:G$502,\"=64\")","v":44},62,{"$f":"COUNTIF(I$5:I$502,\"=64\")","v":15},null,null,null,8,67.588235294117652,4568.169550173011,null,null,64,{"$f":"IF(pop=1,Sheet2!D8,IF(pop=2,Sheet2!F8,IF(pop=3,Sheet2!H8,Sheet2!J8)))","v":24},{"$f":"COUNTIF(O$1:O$1000,\"=6\")","v":0},0,66.5,{"$f":"COUNTIF(O$1:O$1000,\"<=67.5\")-SUM(X$2:X7)","v":16}]
[5,62,65,28,61,{"$f":"COUNTIF(E$5:E$502,\"=65\")","v":25},61,{"$f":"COUNTIF(G$5:G$502,\"=65\")","v":36},62,{"$f":"COUNTIF(I$5:I$502,\"=65\")","v":11},null,null,null,9,67.705882352941174,4584.0865051903111,null,null,65,{"$f":"IF(pop=1,Sheet2!D9,IF(pop=2,Sheet2!F9,IF(pop=3,Sheet2!H9,Sheet2!J9)))","v":25},{"$f":"COUNTIF(O$1:O$1000,\"=7\")","v":0},0,67.5,{"$f":"COUNTIF(O$1:O$1000,\"<=68.5\")-SUM(X$2:X8)","v":41}]
[6,62,66,54,61,{"$f":"COUNTIF(E$5:E$502,\"=66\")","v":27},61,{"$f":"COUNTIF(G$5:G$502,\"=66\")","v":21},62,{"$f":"COUNTIF(I$5:I$502,\"=66\")","v":10},null,null,null,10,67.529411764705884,4560.2214532871976,null,null,66,{"$f":"IF(pop=1,Sheet2!D10,IF(pop=2,Sheet2!F10,IF(pop=3,Sheet2!H10,Sheet2!J10)))","v":27},{"$f":"COUNTIF(O$1:O$1000,\"=8\")","v":0},0,68.5,{"$f":"COUNTIF(O$1:O$1000,\"<=69.5\")-SUM(X$2:X9)","v":50}]
[7,62,67,60,61,{"$f":"COUNTIF(E$5:E$502,\"=67\")","v":21},61,{"$f":"COUNTIF(G$5:G$502,\"=67\")","v":7},62,{"$f":"COUNTIF(I$5:I$502,\"=67\")","v":15},null,null,null,11,69.82352941176471,4875.3252595155718,null,null,67,{"$f":"IF(pop=1,Sheet2!D11,IF(pop=2,Sheet2!F11,IF(pop=3,Sheet2!H11,Sheet2!J11)))","v":21},{"$f":"COUNTIF(O$1:O$1000,\"=9\")","v":0},0,69.5,{"$f":"COUNTIF(O$1:O$1000,\"<=70.5\")-SUM(X$2:X10)","v":22}]
[8,62,68,70,61,{"$f":"COUNTIF(E$5:E$502,\"=68\")","v":29},61,{"$f":"COUNTIF(G$5:G$502,\"=68\")","v":8},62,{"$f":"COUNTIF(I$5:I$502,\"=68\")","v":14},null,null,null,12,68.882352941176464,4744.7785467128015,null,null,68,{"$f":"IF(pop=1,Sheet2!D12,IF(pop=2,Sheet2!F12,IF(pop=3,Sheet2!H12,Sheet2!J12)))","v":29},{"$f":"COUNTIF(O$1:O$1000,\"=10\")","v":0},0,70.5,{"$f":"COUNTIF(O$1:O$1000,\"<=71.5\")-SUM(X$2:X11)","v":4}]
[9,63,69,56,61,{"$f":"COUNTIF(E$5:E$502,\"=69\")","v":34},61,{"$f":"COUNTIF(G$5:G$502,\"=69\")","v":9},63,{"$f":"COUNTIF(I$5:I$502,\"=69\")","v":23},null,null,null,13,68.117647058823536,4640.013840830451,null,null,69,{"$f":"IF(pop=1,Sheet2!D13,IF(pop=2,Sheet2!F13,IF(pop=3,Sheet2!H13,Sheet2!J13)))","v":34},{"$f":"COUNTIF(O$1:O$1000,\"=11\")","v":0},0,71.5,{"$f":"COUNTIF(O$1:O$1000,\"<=72.5\")-SUM(X$2:X12)","v":0}]
[10,63,70,32,61,{"$f":"COUNTIF(E$5:E$502,\"=70\")","v":29},61,{"$f":"COUNTIF(G$5:G$502,\"=70\")","v":10},63,{"$f":"COUNTIF(I$5:I$502,\"=70\")","v":20},null,null,null,14,68.647058823529406,4712.4186851211061,null,null,70,{"$f":"IF(pop=1,Sheet2!D14,IF(pop=2,Sheet2!F14,IF(pop=3,Sheet2!H14,Sheet2!J14)))","v":29},{"$f":"COUNTIF(O$1:O$1000,\"=12\")","v":0},0,72.5,{"$f":"COUNTIF(O$1:O$1000,\"<=73.5\")-SUM(X$2:X13)","v":0}]
[11,63,71,28,61,{"$f":"COUNTIF(E$5:E$502,\"=71\")","v":44},61,{"$f":"COUNTIF(G$5:G$502,\"=71\")","v":24},63,{"$f":"COUNTIF(I$5:I$502,\"=71\")","v":54},null,null,null,15,68.82352941176471,4736.6782006920421,null,null,71,{"$f":"IF(pop=1,Sheet2!D15,IF(pop=2,Sheet2!F15,IF(pop=3,Sheet2!H15,Sheet2!J15)))","v":44},{"$f":"COUNTIF(O$1:O$1000,\"=13\")","v":0},0,73.5,{"$f":"COUNTIF(O$1:O$1000,\"<=74.5\")-SUM(X$2:X14)","v":0}]
[12,64,72,20,61,{"$f":"COUNTIF(E$5:E$502,\"=72\")","v":37},61,{"$f":"COUNTIF(G$5:G$502,\"=72\")","v":34},63,{"$f":"COUNTIF(I$5:I$502,\"=72\")","v":58},null,null,null,16,69.058823529411768,4769.1211072664364,null,null,72,{"$f":"IF(pop=1,Sheet2!D16,IF(pop=2,Sheet2!F16,IF(pop=3,Sheet2!H16,Sheet2!J16)))","v":37},{"$f":"COUNTIF(O$1:O$1000,\"=14\")","v":0},0,74.5,{"$f":"COUNTIF(O$1:O$1000,\"<=75.5\")-SUM(X$2:X15)","v":0}]
[13,64,73,18,61,{"$f":"COUNTIF(E$5:E$502,\"=73\")","v":28},61,{"$f":"COUNTIF(G$5:G$502,\"=73\")","v":45},63,{"$f":"COUNTIF(I$5:I$502,\"=73\")","v":60},null,null,null,17,68.058823529411768,4632.003460207613,null,null,73,{"$f":"IF(pop=1,Sheet2!D17,IF(pop=2,Sheet2!F17,IF(pop=3,Sheet2!H17,Sheet2!J17)))","v":28},{"$f":"COUNTIF($O$1:$O$1000,\"=15\")","v":0},0,75.5,{"$f":"COUNTIF(O$1:O$1000,\"<=76.5\")-SUM(X$2:X16)","v":0}]
[14,64,74,12,61,{"$f":"COUNTIF(E$5:E$502,\"=74\")","v":35},61,{"$f":"COUNTIF(G$5:G$502,\"=74\")","v":41},63,{"$f":"COUNTIF(I$5:I$502,\"=74\")","v":54},null,null,null,18,69.235294117647058,4793.5259515570933,null,null,74,{"$f":"IF(pop=1,Sheet2!D18,IF(pop=2,Sheet2!F18,IF(pop=3,Sheet2!H18,Sheet2!J18)))","v":35},{"$f":"COUNTIF($O$1:$O$1000,\"=16\")","v":0},0]
[15,64,75,4,61,{"$f":"COUNTIF(E$5:E$502,\"=75\")","v":21},61,{"$f":"COUNTIF(G$5:G$502,\"=75\")","v":43},64,{"$f":"COUNTIF(I$5:I$502,\"=75\")","v":62},null,null,null,19,67.117647058823536,4504.7785467128033,null,null,75,{"$f":"IF(pop=1,Sheet2!D19,IF(pop=2,Sheet2!F19,IF(pop=3,Sheet2!H19,Sheet2!J19)))","v":21}]
[16,64,null,null,61,null,61,null,64,null,null,null,null,20,68,4624]
[17,64,null,null,61,null,61,null,64,null,null,null,null,21,67.529411764705884,4560.2214532871976,"pop=",{"$f":"IF(pop=1,\"normal\",IF(pop=2,\"uniform\",IF(pop=3,\"U-shaped\",\"skewed\")))","v":"uniform"}]
[18,64,null,null,61,null,61,null,64,null,null,null,null,22,68.17647058823529,4648.0311418685114,"pop n=",{"$f":"IF(pop=1, 210,IF(pop=2,424,IF(pop=3,397,410)))","v":424}]
[19,64,null,null,61,null,62,null,64,null,null,null,null,23,68.058823529411768,4632.003460207613,null,{"$f":"IF(pop=1, 210,IF(pop=2,424,IF(pop=3,397,410)))","v":424}]
[20,65,null,null,61,null,62,null,64,null,null,null,null,24,69,4761]
[21,65,null,null,61,null,62,null,64,null,null,null,null,25,67.470588235294116,4552.2802768166084,null,"sample sd=",{"$f":"((SUM(P1:P1000)-flips*SampMeans!F21^2)/(flips-1))^0.5","v":0.98112268447141227}]
[22,65,null,null,61,null,62,null,64,null,null,null,null,26,69.17647058823529,4785.3840830449817]
[23,65,null,null,61,null,62,null,64,null,null,null,null,27,68.705882352941174,4720.4982698961931]
[24,65,null,null,62,null,62,null,64,null,null,null,null,28,67.705882352941174,4584.0865051903111,null,null,null,"      New Sample =",null,{"$f":"SampMeans!D25","v":1}]
[25,65,null,null,62,null,62,null,64,null,null,null,null,29,69.470588235294116,4826.162629757785]
[26,65,null,null,62,null,62,null,64,null,null,null,null,30,66.941176470588232,4481.1211072664355]
[27,65,null,null,62,null,62,null,64,null,null,null,null,31,67.529411764705884,4560.2214532871976]
[28,65,null,null,62,null,62,null,64,null,null,null,null,32,68.117647058823536,4640.013840830451]
[29,65,null,null,62,null,62,null,64,null,null,null,null,33,69.058823529411768,4769.1211072664364]
[30,65,null,null,62,null,62,null,65,null,null,null,null,34,68.588235294117652,4704.3460207612461]
[31,65,null,null,62,null,62,null,65,null,null,null,null,35,68.941176470588232,4752.8858131487887]
[32,65,null,null,62,null,62,null,65,null,null,null,null,36,69.235294117647058,4793.5259515570933]
[33,65,null,null,62,null,62,null,65,null,null,null,null,37,67.82352941176471,4600.0311418685123]
[34,66,null,null,62,null,62,null,65,null,null,null,null,38,67.17647058823529,4512.6782006920412]
[35,66,null,null,62,null,62,null,65,null,null,null,null,39,68.529411764705884,4696.2802768166093]
[36,66,null,null,62,null,62,null,65,null,null,null,null,40,69.529411764705884,4834.339100346021]
[37,66,null,null,62,null,62,null,65,null,null,null,null,41,68.117647058823536,4640.013840830451]
[38,66,null,null,62,null,62,null,65,null,null,null,null,42,68.941176470588232,4752.8858131487887]
[39,66,null,null,62,null,62,null,65,null,null,null,null,43,67.647058823529406,4576.1245674740476]
[40,66,null,null,62,null,62,null,65,null,null,null,null,44,68.588235294117652,4704.3460207612461]
[41,66,null,null,62,null,63,null,66,null,null,null,null,45,69.470588235294116,4826.162629757785]
[42,66,null,null,62,null,63,null,66,null,null,null,null,46,68.764705882352942,4728.584775086505]
[43,66,null,null,62,null,63,null,66,null,null,null,null,47,69.705882352941174,4858.9100346020759]
[44,66,null,null,62,null,63,null,66,null,null,null,null,48,68.82352941176471,4736.6782006920421]
[45,66,null,null,62,null,63,null,66,null,null,null,null,49,68.17647058823529,4648.0311418685114]
[46,66,null,null,62,null,63,null,66,null,null,null,null,50,70.647058823529406,4991.0069204152242]
[47,66,null,null,62,null,63,null,66,null,null,null,null,51,68.17647058823529,4648.0311418685114]
[48,66,null,null,62,null,63,null,66,null,null,null,null,52,68,4624]
[49,66,null,null,62,null,63,null,66,null,null,null,null,53,66.882352941176464,4473.2491349480961]
[50,66,null,null,62,null,63,null,66,null,null,null,null,54,68.470588235294116,4688.2214532871967]
[51,66,null,null,62,null,63,null,67,null,null,null,null,55,68.941176470588232,4752.8858131487887]
[52,66,null,null,63,null,63,null,67,null,null,null,null,56,68.941176470588232,4752.8858131487887]
[53,66,null,null,63,null,63,null,67,null,null,null,null,57,69.352941176470594,4809.8304498269908]
[54,66,null,null,63,null,63,null,67,null,null,null,null,58,68.764705882352942,4728.584775086505]
[55,66,null,null,63,null,63,null,67,null,null,null,null,59,67.82352941176471,4600.0311418685123]
[56,66,null,null,63,null,63,null,67,null,null,null,null,60,69.705882352941174,4858.9100346020759]
[57,66,null,null,63,null,63,null,67,null,null,null,null,61,69.117647058823536,4777.2491349480979]
[58,66,null,null,63,null,63,null,67,null,null,null,null,62,70.117647058823536,4916.4844290657447]
[59,66,null,null,63,null,63,null,67,null,null,null,null,63,68,4624]
[60,66,null,null,63,null,63,null,67,null,null,null,null,64,68.411764705882348,4680.1695501730101]
[61,67,null,null,63,null,63,null,67,null,null,null,null,65,{"$f":"IF(N65<=flips,sampmean(n,pop,popsize,newsample),\"\")","v":68},{"$f":"IF(N65<=flips,O65^2,0)","v":4624}]
[62,67,null,null,63,null,63,null,67,null,null,null,null,66,70.058823529411768,4908.2387543252598]
[63,67,null,null,63,null,63,null,67,null,null,null,null,67,69.470588235294116,4826.162629757785]
[64,67,null,null,63,null,63,null,67,null,null,null,null,68,67.352941176470594,4536.418685121108]
[65,67,null,null,63,null,63,null,67,null,null,null,null,69,67.529411764705884,4560.2214532871976]
[66,67,null,null,63,null,63,null,68,null,null,null,null,70,68.588235294117652,4704.3460207612461]
[67,67,null,null,63,null,63,null,68,null,null,null,null,71,68.411764705882348,4680.1695501730101]
[68,67,null,null,63,null,63,null,68,null,null,null,null,72,68.235294117647058,4656.0553633217996]
[69,67,null,null,63,null,63,null,68,null,null,null,null,73,66.647058823529406,4441.830449826989]
[70,67,null,null,63,null,63,null,68,null,null,null,null,74,67.470588235294116,4552.2802768166084]
[71,67,null,null,64,null,63,null,68,null,null,null,null,75,69.235294117647058,4793.5259515570933]
[72,67,null,null,64,null,63,null,68,null,null,null,null,76,68.411764705882348,4680.1695501730101]
[73,67,null,null,64,null,63,null,68,null,null,null,null,77,68.882352941176464,4744.7785467128015]
[74,67,null,null,64,null,63,null,68,null,null,null,null,78,69.705882352941174,4858.9100346020759]
[75,67,null,null,64,null,63,null,68,null,null,null,null,79,70,4900]
[76,67,null,null,64,null,64,null,68,null,null,null,null,80,70.588235294117652,4982.6989619377173]
[77,67,null,null,64,null,64,null,68,null,null,null,null,81,67.882352941176464,4608.0138408304492]
[78,67,null,null,64,null,64,null,68,null,null,null,null,82,66.647058823529406,4441.830449826989]
[79,67,null,null,64,null,64,null,68,null,null,null,null,83,69.705882352941174,4858.9100346020759]
[80,67,null,null,64,null,64,null,69,null,null,null,null,84,67.294117647058826,4528.498269896194]
[81,67,null,null,64,null,64,null,69,null,null,null,null,85,68.058823529411768,4632.003460207613]
[82,67,null,null,64,null,64,null,69,null,null,null,null,86,67,4489]
[83,67,null,null,64,null,64,null,69,null,null,null,null,87,69.117647058823536,4777.2491349480979]
[84,67,null,null,64,null,64,null,69,null,null,null,null,88,67,4489]
[85,67,null,null,64,null,64,null,69,null,null,null,null,89,68.529411764705884,4696.2802768166093]
[86,67,null,null,64,null,64,null,69,null,null,null,null,90,68.529411764705884,4696.2802768166093]
[87,67,null,null,64,null,64,null,69,null,null,null,null,91,67.941176470588232,4616.0034602076121]
[88,67,null,null,64,null,64,null,69,null,null,null,null,92,68.117647058823536,4640.013840830451]
[89,67,null,null,64,null,64,null,69,null,null,null,null,93,69.764705882352942,4867.1141868512113]
[90,67,null,null,64,null,64,null,69,null,null,null,null,94,69.294117647058826,4801.6747404844291]
[91,68,null,null,64,null,64,null,69,null,null,null,null,95,66.764705882352942,4457.5259515570933]
[92,68,null,null,64,null,64,null,69,null,null,null,null,96,68.588235294117652,4704.3460207612461]
[93,68,null,null,64,null,64,null,69,null,null,null,null,97,69.17647058823529,4785.3840830449817]
[94,68,null,null,64,null,64,null,69,null,null,null,null,98,70.117647058823536,4916.4844290657447]
[95,68,null,null,65,null,64,null,69,null,null,null,null,99,69.82352941176471,4875.3252595155718]
[96,68,null,null,65,null,64,null,69,null,null,null,null,100,71,5041]
[97,68,null,null,65,null,64,null,69,null,null,null,null,101,69.294117647058826,4801.6747404844291]
[98,68,null,null,65,null,64,null,69,null,null,null,null,102,67.705882352941174,4584.0865051903111]
[99,68,null,null,65,null,64,null,69,null,null,null,null,103,66.529411764705884,4426.1626297577859]
[100,68,null,null,65,null,64,null,69,null,null,null,null,104,69.588235294117652,4842.5224913494812]
[101,68,null,null,65,null,64,null,69,null,null,null,null,105,69.588235294117652,4842.5224913494812]
[102,68,null,null,65,null,64,null,69,null,null,null,null,106,69.705882352941174,4858.9100346020759]
[103,68,null,null,65,null,64,null,70,null,null,null,null,107,69.82352941176471,4875.3252595155718]
[104,68,null,null,65,null,64,null,70,null,null,null,null,108,67.647058823529406,4576.1245674740476]
[105,68,null,null,65,null,64,null,70,null,null,null,null,109,69.17647058823529,4785.3840830449817]
[106,68,null,null,65,null,64,null,70,null,null,null,null,110,68.647058823529406,4712.4186851211061]
[107,68,null,null,65,null,64,null,70,null,null,null,null,111,68,4624]
[108,68,null,null,65,null,64,null,70,null,null,null,null,112,67.882352941176464,4608.0138408304492]
[109,68,null,null,65,null,64,null,70,null,null,null,null,113,67.411764705882348,4544.3460207612452]
[110,68,null,null,65,null,64,null,70,null,null,null,null,114,67.82352941176471,4600.0311418685123]
[111,68,null,null,65,null,64,null,70,null,null,null,null,115,68.941176470588232,4752.8858131487887]
[112,68,null,null,65,null,64,null,70,null,null,null,null,116,69.647058823529406,4850.7128027681656]
[113,68,null,null,65,null,64,null,70,null,null,null,null,117,68.882352941176464,4744.7785467128015]
[114,68,null,null,65,null,64,null,70,null,null,null,null,118,69.647058823529406,4850.7128027681656]
[115,68,null,null,65,null,64,null,70,null,null,null,null,119,68.529411764705884,4696.2802768166093]
[116,68,null,null,65,null,64,null,70,null,null,null,null,120,68.529411764705884,4696.2802768166093]
[117,68,null,null,65,null,64,null,70,null,null,null,null,121,68.882352941176464,4744.7785467128015]
[118,68,null,null,65,null,64,null,70,null,null,null,null,122,70.82352941176471,5015.9723183391006]
[119,68,null,null,65,null,64,null,70,null,null,null,null,123,68.764705882352942,4728.584775086505]
[120,68,null,null,66,null,65,null,70,null,null,null,null,124,67.588235294117652,4568.169550173011]
[121,68,null,null,66,null,65,null,70,null,null,null,null,125,70.235294117647058,4932.996539792387]
[122,68,null,null,66,null,65,null,70,null,null,null,null,126,68.117647058823536,4640.013840830451]
[123,68,null,null,66,null,65,null,71,null,null,null,null,127,69.764705882352942,4867.1141868512113]
[124,68,null,null,66,null,65,null,71,null,null,null,null,128,67.764705882352942,4592.0553633217996]
[125,68,null,null,66,null,65,null,71,null,null,null,null,129,{"$f":"IF(N129<=flips,sampmean(n,pop,popsize,newsample),\"\")","v":69.705882352941174},{"$f":"IF(N129<=flips,O129^2,0)","v":4858.9100346020759}]
[126,69,null,null,66,null,65,null,71,null,null,null,null,130,69.058823529411768,4769.1211072664364]
[127,69,null,null,66,null,65,null,71,null,null,null,null,131,69.470588235294116,4826.162629757785]
[128,69,null,null,66,null,65,null,71,null,null,null,null,132,68.882352941176464,4744.7785467128015]
[129,69,null,null,66,null,65,null,71,null,null,null,null,133,66.17647058823529,4379.32525951557]
[130,69,null,null,66,null,65,null,71,null,null,null,null,134,69,4761]
[131,69,null,null,66,null,65,null,71,null,null,null,null,135,"",0]
[132,69,null,null,66,null,65,null,71,null,null,null,null,136,"",0]
[133,69,null,null,66,null,65,null,71,null,null,null,null,137,"",0]
[134,69,null,null,66,null,65,null,71,null,null,null,null,138,"",0]
[135,69,null,null,66,null,65,null,71,null,null,null,null,139,"",0]
[136,69,null,null,66,null,65,null,71,null,null,null,null,140,"",0]
[137,69,null,null,66,null,65,null,71,null,null,null,null,141,"",0]
[138,69,null,null,66,null,65,null,71,null,null,null,null,142,"",0]
[139,69,null,null,66,null,65,null,71,null,null,null,null,143,"",0]
[140,69,null,null,66,null,65,null,71,null,null,null,null,144,"",0]
[141,69,null,null,66,null,65,null,71,null,null,null,null,145,"",0]
[142,69,null,null,66,null,65,null,71,null,null,null,null,146,"",0]
[143,69,null,null,66,null,65,null,71,null,null,null,null,147,"",0]
[144,69,null,null,66,null,65,null,71,null,null,null,null,148,"",0]
[145,69,null,null,66,null,65,null,71,null,null,null,null,149,"",0]
[146,69,null,null,66,null,65,null,71,null,null,null,null,150,"",0]
[147,69,null,null,67,null,65,null,71,null,null,null,null,151,"",0]
[148,69,null,null,67,null,65,null,71,null,null,null,null,152,"",0]
[149,69,null,null,67,null,65,null,71,null,null,null,null,153,"",0]
[150,69,null,null,67,null,65,null,71,null,null,null,null,154,"",0]
[151,69,null,null,67,null,65,null,71,null,null,null,null,155,"",0]
[152,69,null,null,67,null,65,null,71,null,null,null,null,156,"",0]
[153,69,null,null,67,null,65,null,71,null,null,null,null,157,"",0]
[154,70,null,null,67,null,65,null,71,null,null,null,null,158,"",0]
[155,70,null,null,67,null,65,null,71,null,null,null,null,159,"",0]
[156,70,null,null,67,null,66,null,71,null,null,null,null,160,"",0]
[157,70,null,null,67,null,66,null,71,null,null,null,null,161,"",0]
[158,70,null,null,67,null,66,null,71,null,null,null,null,162,"",0]
[159,70,null,null,67,null,66,null,71,null,null,null,null,163,"",0]
[160,70,null,null,67,null,66,null,71,null,null,null,null,164,"",0]
[161,70,null,null,67,null,66,null,71,null,null,null,null,165,"",0]
[162,70,null,null,67,null,66,null,71,null,null,null,null,166,"",0]
[163,70,null,null,67,null,66,null,71,null,null,null,null,167,"",0]
[164,70,null,null,67,null,66,null,71,null,null,null,null,168,"",0]
[165,70,null,null,67,null,66,null,71,null,null,null,null,169,"",0]
[166,70,null,null,67,null,66,null,71,null,null,null,null,170,"",0]
[167,70,null,null,67,null,66,null,71,null,null,null,null,171,"",0]
[168,70,null,null,68,null,66,null,71,null,null,null,null,172,"",0]
[169,70,null,null,68,null,66,null,71,null,null,null,null,173,"",0]
[170,71,null,null,68,null,66,null,71,null,null,null,null,174,"",0]
[171,71,null,null,68,null,66,null,71,null,null,null,null,175,"",0]
[172,71,null,null,68,null,66,null,71,null,null,null,null,176,"",0]
[173,71,null,null,68,null,66,null,71,null,null,null,null,177,"",0]
[174,71,null,null,68,null,66,null,71,null,null,null,null,178,"",0]
[175,71,null,null,68,null,66,null,71,null,null,null,null,179,"",0]
[176,71,null,null,68,null,66,null,71,null,null,null,null,180,"",0]
[177,71,null,null,68,null,67,null,72,null,null,null,null,181,"",0]
[178,71,null,null,68,null,67,null,72,null,null,null,null,182,"",0]
[179,71,null,null,68,null,67,null,72,null,null,null,null,183,"",0]
[180,71,null,null,68,null,67,null,72,null,null,null,null,184,"",0]
[181,71,null,null,68,null,67,null,72,null,null,null,null,185,"",0]
[182,71,null,null,68,null,67,null,72,null,null,null,null,186,"",0]
[183,71,null,null,68,null,67,null,72,null,null,null,null,187,"",0]
[184,72,null,null,68,null,68,null,72,null,null,null,null,188,"",0]
[185,72,null,null,68,null,68,null,72,null,null,null,null,189,"",0]
[186,72,null,null,68,null,68,null,72,null,null,null,null,190,"",0]
[187,72,null,null,68,null,68,null,72,null,null,null,null,191,"",0]
[188,72,null,null,68,null,68,null,72,null,null,null,null,192,"",0]
[189,72,null,null,68,null,68,null,72,null,null,null,null,193,{"$f":"IF(N193<=flips,sampmean(n,pop,popsize,newsample),\"\")","v":""},{"$f":"IF(N193<=flips,O193^2,0)","v":0}]
[190,72,null,null,68,null,68,null,72,null,null,null,null,194,"",0]
[191,72,null,null,68,null,68,null,72,null,null,null,null,195,"",0]
[192,72,null,null,68,null,69,null,72,null,null,null,null,196,"",0]
[193,72,null,null,68,null,69,null,72,null,null,null,null,197,"",0]
[194,73,null,null,68,null,69,null,72,null,null,null,null,198,"",0]
[195,73,null,null,68,null,69,null,72,null,null,null,null,199,"",0]
[196,73,null,null,68,null,69,null,72,null,null,null,null,200,"",0]
[197,73,null,null,69,null,69,null,72,null,null,null,null,201,"",0]
[198,73,null,null,69,null,69,null,72,null,null,null,null,202,"",0]
[199,73,null,null,69,null,69,null,72,null,null,null,null,203,"",0]
[200,73,null,null,69,null,69,null,72,null,null,null,null,204,"",0]
[201,73,null,null,69,null,70,null,72,null,null,null,null,205,"",0]
[202,73,null,null,69,null,70,null,72,null,null,null,null,206,"",0]
[203,74,null,null,69,null,70,null,72,null,null,null,null,207,"",0]
[204,74,null,null,69,null,70,null,72,null,null,null,null,208,"",0]
[205,74,null,null,69,null,70,null,72,null,null,null,null,209,"",0]
[206,74,null,null,69,null,70,null,72,null,null,null,null,210,"",0]
[207,74,null,null,69,null,70,null,72,null,null,null,null,211,"",0]
[208,74,null,null,69,null,70,null,72,null,null,null,null,212,"",0]
[209,75,null,null,69,null,70,null,72,null,null,null,null,213,"",0]
[210,75,null,null,69,null,70,null,72,null,null,null,null,214,"",0]
[211,null,null,null,69,null,71,null,72,null,null,null,null,215,"",0]
[212,null,null,null,69,null,71,null,72,null,null,null,null,216,"",0]
[213,null,null,null,69,null,71,null,72,null,null,null,null,217,"",0]
[214,null,null,null,69,null,71,null,72,null,null,null,null,218,"",0]
[215,null,null,null,69,null,71,null,72,null,null,null,null,219,"",0]
[216,null,null,null,69,null,71,null,72,null,null,null,null,220,"",0]
[217,null,null,null,69,null,71,null,72,null,null,null,null,221,"",0]
[218,null,null,null,69,null,71,null,72,null,null,null,null,222,"",0]
[219,null,null,null,69,null,71,null,72,null,null,null,null,223,"",0]
[220,null,null,null,69,null,71,null,72,null,null,null,null,224,"",0]
[221,null,null,null,69,null,71,null,72,null,null,null,null,225,"",0]
[222,null,null,null,69,null,71,null,72,null,null,null,null,226,"",0]
[223,null,null,null,69,null,71,null,72,null,null,null,null,227,"",0]
[224,null,null,null,69,null,71,null,72,null,null,null,null,228,"",0]
[225,null,null,null,69,null,71,null,72,null,null,null,null,229,"",0]
[226,null,null,null,69,null,71,null,72,null,null,null,null,230,"",0]
[227,null,null,null,69,null,71,null,72,null,null,null,null,231,"",0]
[228,null,null,null,69,null,71,null,72,null,null,null,null,232,"",0]
[229,null,null,null,69,null,71,null,72,null,null,null,null,233,"",0]
[230,null,null,null,69,null,71,null,72,null,null,null,null,234,"",0]
[231,null,null,null,70,null,71,null,72,null,null,null,null,235,"",0]
[232,null,null,null,70,null,71,null,72,null,null,null,null,236,"",0]
[233,null,null,null,70,null,71,null,72,null,null,null,null,237,"",0]
[234,null,null,null,70,null,71,null,72,null,null,null,null,238,"",0]
[235,null,null,null,70,null,72,null,73,null,null,null,null,239,"",0]
[236,null,null,null,70,null,72,null,73,null,null,null,null,240,"",0]
[237,null,null,null,70,null,72,null,73,null,null,null,null,241,"",0]
[238,null,null,null,70,null,72,null,73,null,null,null,null,242,"",0]
[239,null,null,null,70,null,72,null,73,null,null,null,null,243,"",0]
[240,null,null,null,70,null,72,null,73,null,null,null,null,244,"",0]
[241,null,null,null,70,null,72,null,73,null,null,null,null,245,"",0]
[242,null,null,null,70,null,72,null,73,null,null,null,null,246,"",0]
[243,null,null,null,70,null,72,null,73,null,null,null,null,247,"",0]
[244,null,null,null,70,null,72,null,73,null,null,null,null,248,"",0]
[245,null,null,null,70,null,72,null,73,null,null,null,null,249,"",0]
[246,null,null,null,70,null,72,null,73,null,null,null,null,250,"",0]
[247,null,null,null,70,null,72,null,73,null,null,null,null,251,"",0]
[248,null,null,null,70,null,72,null,73,null,null,null,null,252,"",0]
[249,null,null,null,70,null,72,null,73,null,null,null,null,253,"",0]
[250,null,null,null,70,null,72,null,73,null,null,null,null,254,"",0]
[251,null,null,null,70,null,72,null,73,null,null,null,null,255,"",0]
[252,null,null,null,70,null,72,null,73,null,null,null,null,256,"",0]
[253,null,null,null,70,null,72,null,73,null,null,null,null,257,{"$f":"IF(N257<=flips,sampmean(n,pop,popsize,newsample),\"\")","v":""},{"$f":"IF(N257<=flips,O257^2,0)","v":0}]
[254,null,null,null,70,null,72,null,73,null,null,null,null,258,"",0]
[255,null,null,null,70,null,72,null,73,null,null,null,null,259,"",0]
[256,null,null,null,70,null,72,null,73,null,null,null,null,260,"",0]
[257,null,null,null,70,null,72,null,73,null,null,null,null,261,"",0]
[258,null,null,null,70,null,72,null,73,null,null,null,null,262,"",0]
[259,null,null,null,70,null,72,null,73,null,null,null,null,263,"",0]
[260,null,null,null,71,null,72,null,73,null,null,null,null,264,"",0]
[261,null,null,null,71,null,72,null,73,null,null,null,null,265,"",0]
[262,null,null,null,71,null,72,null,73,null,null,null,null,266,"",0]
[263,null,null,null,71,null,72,null,73,null,null,null,null,267,"",0]
[264,null,null,null,71,null,72,null,73,null,null,null,null,268,"",0]
[265,null,null,null,71,null,72,null,73,null,null,null,null,269,"",0]
[266,null,null,null,71,null,72,null,73,null,null,null,null,270,"",0]
[267,null,null,null,71,null,72,null,73,null,null,null,null,271,"",0]
[268,null,null,null,71,null,72,null,73,null,null,null,null,272,"",0]
[269,null,null,null,71,null,73,null,73,null,null,null,null,273,"",0]
[270,null,null,null,71,null,73,null,73,null,null,null,null,274,"",0]
[271,null,null,null,71,null,73,null,73,null,null,null,null,275,"",0]
[272,null,null,null,71,null,73,null,73,null,null,null,null,276,"",0]
[273,null,null,null,71,null,73,null,73,null,null,null,null,277,"",0]
[274,null,null,null,71,null,73,null,73,null,null,null,null,278,"",0]
[275,null,null,null,71,null,73,null,73,null,null,null,null,279,"",0]
[276,null,null,null,71,null,73,null,73,null,null,null,null,280,"",0]
[277,null,null,null,71,null,73,null,73,null,null,null,null,281,"",0]
[278,null,null,null,71,null,73,null,73,null,null,null,null,282,"",0]
[279,null,null,null,71,null,73,null,73,null,null,null,null,283,"",0]
[280,null,null,null,71,null,73,null,73,null,null,null,null,284,"",0]
[281,null,null,null,71,null,73,null,73,null,null,null,null,285,"",0]
[282,null,null,null,71,null,73,null,73,null,null,null,null,286,"",0]
[283,null,null,null,71,null,73,null,73,null,null,null,null,287,"",0]
[284,null,null,null,71,null,73,null,73,null,null,null,null,288,"",0]
[285,null,null,null,71,null,73,null,73,null,null,null,null,289,"",0]
[286,null,null,null,71,null,73,null,73,null,null,null,null,290,"",0]
[287,null,null,null,71,null,73,null,73,null,null,null,null,291,"",0]
[288,null,null,null,71,null,73,null,73,null,null,null,null,292,"",0]
[289,null,null,null,71,null,73,null,73,null,null,null,null,293,"",0]
[290,null,null,null,71,null,73,null,73,null,null,null,null,294,"",0]
[291,null,null,null,71,null,73,null,73,null,null,null,null,295,"",0]
[292,null,null,null,71,null,73,null,73,null,null,null,null,296,"",0]
[293,null,null,null,71,null,73,null,73,null,null,null,null,297,"",0]
[294,null,null,null,71,null,73,null,73,null,null,null,null,298,"",0]
[295,null,null,null,71,null,73,null,74,null,null,null,null,299,"",0]
[296,null,null,null,71,null,73,null,74,null,null,null,null,300,"",0]
[297,null,null,null,71,null,73,null,74,null,null,null,null,301,"",0]
[298,null,null,null,71,null,73,null,74,null,null,null,null,302,"",0]
[299,null,null,null,71,null,73,null,74,null,null,null,null,303,"",0]
[300,null,null,null,71,null,73,null,74,null,null,null,null,304,"",0]
[301,null,null,null,71,null,73,null,74,null,null,null,null,305,"",0]
[302,null,null,null,71,null,73,null,74,null,null,null,null,306,"",0]
[303,null,null,null,71,null,73,null,74,null,null,null,null,307,"",0]
[304,null,null,null,72,null,73,null,74,null,null,null,null,308,"",0]
[305,null,null,null,72,null,73,null,74,null,null,null,null,309,"",0]
[306,null,null,null,72,null,73,null,74,null,null,null,null,310,"",0]
[307,null,null,null,72,null,73,null,74,null,null,null,null,311,"",0]
[308,null,null,null,72,null,73,null,74,null,null,null,null,312,"",0]
[309,null,null,null,72,null,73,null,74,null,null,null,null,313,"",0]
[310,null,null,null,72,null,73,null,74,null,null,null,null,314,"",0]
[311,null,null,null,72,null,73,null,74,null,null,null,null,315,"",0]
[312,null,null,null,72,null,73,null,74,null,null,null,null,316,"",0]
[313,null,null,null,72,null,73,null,74,null,null,null,null,317,"",0]
[314,null,null,null,72,null,74,null,74,null,null,null,null,318,"",0]
[315,null,null,null,72,null,74,null,74,null,null,null,null,319,"",0]
[316,null,null,null,72,null,74,null,74,null,null,null,null,320,"",0]
[317,null,null,null,72,null,74,null,74,null,null,null,null,321,{"$f":"IF(N321<=flips,sampmean(n,pop,popsize,newsample),\"\")","v":""},{"$f":"IF(N321<=flips,O321^2,0)","v":0}]
[318,null,null,null,72,null,74,null,74,null,null,null,null,322,"",0]
[319,null,null,null,72,null,74,null,74,null,null,null,null,323,"",0]
[320,null,null,null,72,null,74,null,74,null,null,null,null,324,"",0]
[321,null,null,null,72,null,74,null,74,null,null,null,null,325,"",0]
[322,null,null,null,72,null,74,null,74,null,null,null,null,326,"",0]
[323,null,null,null,72,null,74,null,74,null,null,null,null,327,"",0]
[324,null,null,null,72,null,74,null,74,null,null,null,null,328,"",0]
[325,null,null,null,72,null,74,null,74,null,null,null,null,329,"",0]
[326,null,null,null,72,null,74,null,74,null,null,null,null,330,"",0]
[327,null,null,null,72,null,74,null,74,null,null,null,null,331,"",0]
[328,null,null,null,72,null,74,null,74,null,null,null,null,332,"",0]
[329,null,null,null,72,null,74,null,74,null,null,null,null,333,"",0]
[330,null,null,null,72,null,74,null,74,null,null,null,null,334,"",0]
[331,null,null,null,72,null,74,null,74,null,null,null,null,335,"",0]
[332,null,null,null,72,null,74,null,74,null,null,null,null,336,"",0]
[333,null,null,null,72,null,74,null,74,null,null,null,null,337,"",0]
[334,null,null,null,72,null,74,null,74,null,null,null,null,338,"",0]
[335,null,null,null,72,null,74,null,74,null,null,null,null,339,"",0]
[336,null,null,null,72,null,74,null,74,null,null,null,null,340,"",0]
[337,null,null,null,72,null,74,null,74,null,null,null,null,341,"",0]
[338,null,null,null,72,null,74,null,74,null,null,null,null,342,"",0]
[339,null,null,null,72,null,74,null,74,null,null,null,null,343,"",0]
[340,null,null,null,72,null,74,null,74,null,null,null,null,344,"",0]
[341,null,null,null,73,null,74,null,74,null,null,null,null,345,"",0]
[342,null,null,null,73,null,74,null,74,null,null,null,null,346,"",0]
[343,null,null,null,73,null,74,null,74,null,null,null,null,347,"",0]
[344,null,null,null,73,null,74,null,74,null,null,null,null,348,"",0]
[345,null,null,null,73,null,74,null,74,null,null,null,null,349,"",0]
[346,null,null,null,73,null,74,null,74,null,null,null,null,350,"",0]
[347,null,null,null,73,null,74,null,74,null,null,null,null,351,"",0]
[348,null,null,null,73,null,74,null,74,null,null,null,null,352,"",0]
[349,null,null,null,73,null,74,null,75,null,null,null,null,353,"",0]
[350,null,null,null,73,null,74,null,75,null,null,null,null,354,"",0]
[351,null,null,null,73,null,74,null,75,null,null,null,null,355,"",0]
[352,null,null,null,73,null,74,null,75,null,null,null,null,356,"",0]
[353,null,null,null,73,null,74,null,75,null,null,null,null,357,"",0]
[354,null,null,null,73,null,74,null,75,null,null,null,null,358,"",0]
[355,null,null,null,73,null,75,null,75,null,null,null,null,359,"",0]
[356,null,null,null,73,null,75,null,75,null,null,null,null,360,"",0]
[357,null,null,null,73,null,75,null,75,null,null,null,null,361,"",0]
[358,null,null,null,73,null,75,null,75,null,null,null,null,362,"",0]
[359,null,null,null,73,null,75,null,75,null,null,null,null,363,"",0]
[360,null,null,null,73,null,75,null,75,null,null,null,null,364,"",0]
[361,null,null,null,73,null,75,null,75,null,null,null,null,365,"",0]
[362,null,null,null,73,null,75,null,75,null,null,null,null,366,"",0]
[363,null,null,null,73,null,75,null,75,null,null,null,null,367,"",0]
[364,null,null,null,73,null,75,null,75,null,null,null,null,368,"",0]
[365,null,null,null,73,null,75,null,75,null,null,null,null,369,"",0]
[366,null,null,null,73,null,75,null,75,null,null,null,null,370,"",0]
[367,null,null,null,73,null,75,null,75,null,null,null,null,371,"",0]
[368,null,null,null,73,null,75,null,75,null,null,null,null,372,"",0]
[369,null,null,null,74,null,75,null,75,null,null,null,null,373,"",0]
[370,null,null,null,74,null,75,null,75,null,null,null,null,374,"",0]
[371,null,null,null,74,null,75,null,75,null,null,null,null,375,"",0]
[372,null,null,null,74,null,75,null,75,null,null,null,null,376,"",0]
[373,null,null,null,74,null,75,null,75,null,null,null,null,377,"",0]
[374,null,null,null,74,null,75,null,75,null,null,null,null,378,"",0]
[375,null,null,null,74,null,75,null,75,null,null,null,null,379,"",0]
[376,null,null,null,74,null,75,null,75,null,null,null,null,380,"",0]
[377,null,null,null,74,null,75,null,75,null,null,null,null,381,"",0]
[378,null,null,null,74,null,75,null,75,null,null,null,null,382,"",0]
[379,null,null,null,74,null,75,null,75,null,null,null,null,383,"",0]
[380,null,null,null,74,null,75,null,75,null,null,null,null,384,"",0]
[381,null,null,null,74,null,75,null,75,null,null,null,null,385,{"$f":"IF(N385<=flips,sampmean(n,pop,popsize,newsample),\"\")","v":""},{"$f":"IF(N385<=flips,O385^2,0)","v":0}]
[382,null,null,null,74,null,75,null,75,null,null,null,null,386,"",0]
[383,null,null,null,74,null,75,null,75,null,null,null,null,387,"",0]
[384,null,null,null,74,null,75,null,75,null,null,null,null,388,"",0]
[385,null,null,null,74,null,75,null,75,null,null,null,null,389,"",0]
[386,null,null,null,74,null,75,null,75,null,null,null,null,390,"",0]
[387,null,null,null,74,null,75,null,75,null,null,null,null,391,"",0]
[388,null,null,null,74,null,75,null,75,null,null,null,null,392,"",0]
[389,null,null,null,74,null,75,null,75,null,null,null,null,393,"",0]
[390,null,null,null,74,null,75,null,75,null,null,null,null,394,"",0]
[391,null,null,null,74,null,75,null,75,null,null,null,null,395,"",0]
[392,null,null,null,74,null,75,null,75,null,null,null,null,396,"",0]
[393,null,null,null,74,null,75,null,75,null,null,null,null,397,"",0]
[394,null,null,null,74,null,75,null,75,null,null,null,null,398,"",0]
[395,null,null,null,74,null,75,null,75,null,null,null,null,399,"",0]
[396,null,null,null,74,null,75,null,75,null,null,null,null,400,"",0]
[397,null,null,null,74,null,75,null,75,null,null,null,null,401,"",0]
[398,null,null,null,74,null,null,null,75,null,null,null,null,402,"",0]
[399,null,null,null,74,null,null,null,75,null,null,null,null,403,"",0]
[400,null,null,null,74,null,null,null,75,null,null,null,null,404,"",0]
[401,null,null,null,74,null,null,null,75,null,null,null,null,405,"",0]
[402,null,null,null,74,null,null,null,75,null,null,null,null,406,"",0]
[403,null,null,null,74,null,null,null,75,null,null,null,null,407,"",0]
[404,null,null,null,75,null,null,null,75,null,null,null,null,408,"",0]
[405,null,null,null,75,null,null,null,75,null,null,null,null,409,"",0]
[406,null,null,null,75,null,null,null,75,null,null,null,null,410,"",0]
[407,null,null,null,75,null,null,null,75,null,null,null,null,411,"",0]
[408,null,null,null,75,null,null,null,75,null,null,null,null,412,"",0]
[409,null,null,null,75,null,null,null,75,null,null,null,null,413,"",0]
[410,null,null,null,75,null,null,null,75,null,null,null,null,414,"",0]
[411,null,null,null,75,null,null,null,null,null,null,null,null,415,"",0]
[412,null,null,null,75,null,null,null,null,null,null,null,null,416,"",0]
[413,null,null,null,75,null,null,null,null,null,null,null,null,417,"",0]
[414,null,null,null,75,null,null,null,null,null,null,null,null,418,"",0]
[415,null,null,null,75,null,null,null,null,null,null,null,null,419,"",0]
[416,null,null,null,75,null,null,null,null,null,null,null,null,420,"",0]
[417,null,null,null,75,null,null,null,null,null,null,null,null,421,"",0]
[418,null,null,null,75,null,null,null,null,null,null,null,null,422,"",0]
[419,null,null,null,75,null,null,null,null,null,null,null,null,423,"",0]
[420,null,null,null,75,null,null,null,null,null,null,null,null,424,"",0]
[421,null,null,null,75,null,null,null,null,null,null,null,null,425,"",0]
[422,null,null,null,75,null,null,null,null,null,null,null,null,426,"",0]
[423,null,null,null,75,null,null,null,null,null,null,null,null,427,"",0]
[424,null,null,null,75,null,null,null,null,null,null,null,null,428,"",0]
[null,null,null,null,null,null,null,null,null,null,null,null,null,429,"",0]
[null,null,null,null,null,null,null,null,null,null,null,null,null,430,"",0]
[null,null,null,null,null,null,null,null,null,null,null,null,null,431,"",0]
[null,null,null,null,null,null,null,null,null,null,null,null,null,432,"",0]
[null,null,null,null,null,null,null,null,null,null,null,null,null,433,"",0]
[null,null,null,null,null,null,null,null,null,null,null,null,null,434,"",0]
[null,null,null,null,null,null,null,null,null,null,null,null,null,435,"",0]
[null,null,null,null,null,null,null,null,null,null,null,null,null,436,"",0]
[null,null,null,null,null,null,null,null,null,null,null,null,null,437,"",0]
[null,null,null,null,null,null,null,null,null,null,null,null,null,438,"",0]
[null,null,null,null,null,null,null,null,null,null,null,null,null,439,"",0]
[null,null,null,null,null,null,null,null,null,null,null,null,null,440,"",0]
[null,null,null,null,null,null,null,null,null,null,null,null,null,441,"",0]
[null,null,null,null,null,null,null,null,null,null,null,null,null,442,"",0]
[null,null,null,null,null,null,null,null,null,null,null,null,null,443,"",0]
[null,null,null,null,null,null,null,null,null,null,null,null,null,444,"",0]
[null,null,null,null,null,null,null,null,null,null,null,null,null,445,"",0]
[null,null,null,null,null,null,null,null,null,null,null,null,null,446,"",0]
[null,null,null,null,null,null,null,null,null,null,null,null,null,447,"",0]
[null,null,null,null,null,null,null,null,null,null,null,null,null,448,"",0]
[null,null,null,null,null,null,null,null,null,null,null,null,null,449,{"$f":"IF(N449<=flips,sampmean(n,pop,popsize,newsample),\"\")","v":""},{"$f":"IF(N449<=flips,O449^2,0)","v":0}]
[null,null,null,null,null,null,null,null,null,null,null,null,null,450,"",0]
[null,null,null,null,null,null,null,null,null,null,null,null,null,451,"",0]
[null,null,null,null,null,null,null,null,null,null,null,null,null,452,"",0]
[null,null,null,null,null,null,null,null,null,null,null,null,null,453,"",0]
[null,null,null,null,null,null,null,null,null,null,null,null,null,454,"",0]
[null,null,null,null,null,null,null,null,null,null,null,null,null,455,"",0]
[null,null,null,null,null,null,null,null,null,null,null,null,null,456,"",0]
[null,null,null,null,null,null,null,null,null,null,null,null,null,457,"",0]
[null,null,null,null,null,null,null,null,null,null,null,null,null,458,"",0]
[null,null,null,null,null,null,null,null,null,null,null,null,null,459,"",0]
[null,null,null,null,null,null,null,null,null,null,null,null,null,460,"",0]
[null,null,null,null,null,null,null,null,null,null,null,null,null,461,"",0]
[null,null,null,null,null,null,null,null,null,null,null,null,null,462,"",0]
[null,null,null,null,null,null,null,null,null,null,null,null,null,463,"",0]
[null,null,null,null,null,null,null,null,null,null,null,null,null,464,"",0]
[null,null,null,null,null,null,null,null,null,null,null,null,null,465,"",0]
[null,null,null,null,null,null,null,null,null,null,null,null,null,466,"",0]
[null,null,null,null,null,null,null,null,null,null,null,null,null,467,"",0]
[null,null,null,null,null,null,null,null,null,null,null,null,null,468,"",0]
[null,null,null,null,null,null,null,null,null,null,null,null,null,469,"",0]
[null,null,null,null,null,null,null,null,null,null,null,null,null,470,"",0]
[null,null,null,null,null,null,null,null,null,null,null,null,null,471,"",0]
[null,null,null,null,null,null,null,null,null,null,null,null,null,472,"",0]
[null,null,null,null,null,null,null,null,null,null,null,null,null,473,"",0]
[null,null,null,null,null,null,null,null,null,null,null,null,null,474,"",0]
[null,null,null,null,null,null,null,null,null,null,null,null,null,475,"",0]
[null,null,null,null,null,null,null,null,null,null,null,null,null,476,"",0]
[null,null,null,null,null,null,null,null,null,null,null,null,null,477,"",0]
[null,null,null,null,null,null,null,null,null,null,null,null,null,478,"",0]
[null,null,null,null,null,null,null,null,null,null,null,null,null,479,"",0]
[null,null,null,null,null,null,null,null,null,null,null,null,null,480,"",0]
[null,null,null,null,null,null,null,null,null,null,null,null,null,481,"",0]
[null,null,null,null,null,null,null,null,null,null,null,null,null,482,"",0]
[null,null,null,null,null,null,null,null,null,null,null,null,null,483,"",0]
[null,null,null,null,null,null,null,null,null,null,null,null,null,484,"",0]
[null,null,null,null,null,null,null,null,null,null,null,null,null,485,"",0]
[null,null,null,null,null,null,null,null,null,null,null,null,null,486,"",0]
[null,null,null,null,null,null,null,null,null,null,null,null,null,487,"",0]
[null,null,null,null,null,null,null,null,null,null,null,null,null,488,"",0]
[null,null,null,null,null,null,null,null,null,null,null,null,null,489,"",0]
[null,null,null,null,null,null,null,null,null,null,null,null,null,490,"",0]
[null,null,null,null,null,null,null,null,null,null,null,null,null,491,"",0]
[null,null,null,null,null,null,null,null,null,null,null,null,null,492,"",0]
[null,null,null,null,null,null,null,null,null,null,null,null,null,493,"",0]
[null,null,null,null,null,null,null,null,null,null,null,null,null,494,"",0]
[null,null,null,null,null,null,null,null,null,null,null,null,null,495,"",0]
[null,null,null,null,null,null,null,null,null,null,null,null,null,496,"",0]
[null,null,null,null,null,null,null,null,null,null,null,null,null,497,"",0]
[null,null,null,null,null,null,null,null,null,null,null,null,null,498,"",0]
[null,null,null,null,null,null,null,null,null,null,null,null,null,499,"",0]
[null,null,null,null,null,null,null,null,null,null,null,null,null,500,"",0]
[null,null,null,null,null,null,null,null,null,null,null,null,null,null,null,0]
[null,null,null,null,null,null,null,null,null,null,null,null,null,null,null,0]
[null,null,null,null,null,null,null,null,null,null,null,null,null,null,null,0]
[null,null,null,null,null,null,null,null,null,null,null,null,null,null,null,0]
[null,null,null,null,null,null,null,null,null,null,null,null,null,null,null,0]
[null,null,null,null,null,null,null,null,null,null,null,null,null,null,null,0]
[null,null,null,null,null,null,null,null,null,null,null,null,null,null,null,0]
[null,null,null,null,null,null,null,null,null,null,null,null,null,null,null,0]
[null,null,null,null,null,null,null,null,null,null,null,null,null,null,null,0]
[null,null,null,null,null,null,null,null,null,null,null,null,null,null,null,0]
[null,null,null,null,null,null,null,null,null,null,null,null,null,null,null,0]
[null,null,null,null,null,null,null,null,null,null,null,null,null,null,null,0]
[null,null,null,null,null,null,null,null,null,null,null,null,null,null,null,{"$f":"IF(N513<=flips,O513^2,0)","v":0}]
[null,null,null,null,null,null,null,null,null,null,null,null,null,null,null,0]
[null,null,null,null,null,null,null,null,null,null,null,null,null,null,null,0]
[null,null,null,null,null,null,null,null,null,null,null,null,null,null,null,0]
[null,null,null,null,null,null,null,null,null,null,null,null,null,null,null,0]
[null,null,null,null,null,null,null,null,null,null,null,null,null,null,null,0]
[null,null,null,null,null,null,null,null,null,null,null,null,null,null,null,0]
[null,null,null,null,null,null,null,null,null,null,null,null,null,null,null,0]
[null,null,null,null,null,null,null,null,null,null,null,null,null,null,null,0]
[null,null,null,null,null,null,null,null,null,null,null,null,null,null,null,0]
[null,null,null,null,null,null,null,null,null,null,null,null,null,null,null,0]
[null,null,null,null,null,null,null,null,null,null,null,null,null,null,null,0]
[null,null,null,null,null,null,null,null,null,null,null,null,null,null,null,0]
[null,null,null,null,null,null,null,null,null,null,null,null,null,null,null,0]
[null,null,null,null,null,null,null,null,null,null,null,null,null,null,null,0]
[null,null,null,null,null,null,null,null,null,null,null,null,null,null,null,0]
[null,null,null,null,null,null,null,null,null,null,null,null,null,null,null,0]
[null,null,null,null,null,null,null,null,null,null,null,null,null,null,null,0]
[null,null,null,null,null,null,null,null,null,null,null,null,null,null,null,0]
[null,null,null,null,null,null,null,null,null,null,null,null,null,null,null,0]
[null,null,null,null,null,null,null,null,null,null,null,null,null,null,null,0]
[null,null,null,null,null,null,null,null,null,null,null,null,null,null,null,0]
[null,null,null,null,null,null,null,null,null,null,null,null,null,null,null,0]
[null,null,null,null,null,null,null,null,null,null,null,null,null,null,null,0]
[null,null,null,null,null,null,null,null,null,null,null,null,null,null,null,0]
[null,null,null,null,null,null,null,null,null,null,null,null,null,null,null,0]
[null,null,null,null,null,null,null,null,null,null,null,null,null,null,null,0]
[null,null,null,null,null,null,null,null,null,null,null,null,null,null,null,0]
[null,null,null,null,null,null,null,null,null,null,null,null,null,null,null,0]
[null,null,null,null,null,null,null,null,null,null,null,null,null,null,null,0]
[null,null,null,null,null,null,null,null,null,null,null,null,null,null,null,0]
[null,null,null,null,null,null,null,null,null,null,null,null,null,null,null,0]
[null,null,null,null,null,null,null,null,null,null,null,null,null,null,null,0]
[null,null,null,null,null,null,null,null,null,null,null,null,null,null,null,0]
[null,null,null,null,null,null,null,null,null,null,null,null,null,null,null,0]
[null,null,null,null,null,null,null,null,null,null,null,null,null,null,null,0]
[null,null,null,null,null,null,null,null,null,null,null,null,null,null,null,0]
[null,null,null,null,null,null,null,null,null,null,null,null,null,null,null,0]
[null,null,null,null,null,null,null,null,null,null,null,null,null,null,null,0]
[null,null,null,null,null,null,null,null,null,null,null,null,null,null,null,0]
[null,null,null,null,null,null,null,null,null,null,null,null,null,null,null,0]
[null,null,null,null,null,null,null,null,null,null,null,null,null,null,null,0]
[null,null,null,null,null,null,null,null,null,null,null,null,null,null,null,0]
[null,null,null,null,null,null,null,null,null,null,null,null,null,null,null,0]
[null,null,null,null,null,null,null,null,null,null,null,null,null,null,null,0]
[null,null,null,null,null,null,null,null,null,null,null,null,null,null,null,0]
[null,null,null,null,null,null,null,null,null,null,null,null,null,null,null,0]
[null,null,null,null,null,null,null,null,null,null,null,null,null,null,null,0]
[null,null,null,null,null,null,null,null,null,null,null,null,null,null,null,0]
[null,null,null,null,null,null,null,null,null,null,null,null,null,null,null,0]
[null,null,null,null,null,null,null,null,null,null,null,null,null,null,null,0]
[null,null,null,null,null,null,null,null,null,null,null,null,null,null,null,0]
[null,null,null,null,null,null,null,null,null,null,null,null,null,null,null,0]
[null,null,null,null,null,null,null,null,null,null,null,null,null,null,null,0]
[null,null,null,null,null,null,null,null,null,null,null,null,null,null,null,0]
[null,null,null,null,null,null,null,null,null,null,null,null,null,null,null,0]
[null,null,null,null,null,null,null,null,null,null,null,null,null,null,null,0]
[null,null,null,null,null,null,null,null,null,null,null,null,null,null,null,0]
[null,null,null,null,null,null,null,null,null,null,null,null,null,null,null,0]
[null,null,null,null,null,null,null,null,null,null,null,null,null,null,null,0]
[null,null,null,null,null,null,null,null,null,null,null,null,null,null,null,0]
[null,null,null,null,null,null,null,null,null,null,null,null,null,null,null,0]
[null,null,null,null,null,null,null,null,null,null,null,null,null,null,null,0]
[null,null,null,null,null,null,null,null,null,null,null,null,null,null,null,0]
[null,null,null,null,null,null,null,null,null,null,null,null,null,null,null,{"$f":"IF(N577<=flips,O577^2,0)","v":0}]
[null,null,null,null,null,null,null,null,null,null,null,null,null,null,null,0]
[null,null,null,null,null,null,null,null,null,null,null,null,null,null,null,0]
[null,null,null,null,null,null,null,null,null,null,null,null,null,null,null,0]
[null,null,null,null,null,null,null,null,null,null,null,null,null,null,null,0]
[null,null,null,null,null,null,null,null,null,null,null,null,null,null,null,0]
[null,null,null,null,null,null,null,null,null,null,null,null,null,null,null,0]
[null,null,null,null,null,null,null,null,null,null,null,null,null,null,null,0]
[null,null,null,null,null,null,null,null,null,null,null,null,null,null,null,0]
[null,null,null,null,null,null,null,null,null,null,null,null,null,null,null,0]
[null,null,null,null,null,null,null,null,null,null,null,null,null,null,null,0]
[null,null,null,null,null,null,null,null,null,null,null,null,null,null,null,0]
[null,null,null,null,null,null,null,null,null,null,null,null,null,null,null,0]
[null,null,null,null,null,null,null,null,null,null,null,null,null,null,null,0]
[null,null,null,null,null,null,null,null,null,null,null,null,null,null,null,0]
[null,null,null,null,null,null,null,null,null,null,null,null,null,null,null,0]
[null,null,null,null,null,null,null,null,null,null,null,null,null,null,null,0]
[null,null,null,null,null,null,null,null,null,null,null,null,null,null,null,0]
[null,null,null,null,null,null,null,null,null,null,null,null,null,null,null,0]
[null,null,null,null,null,null,null,null,null,null,null,null,null,null,null,0]
[null,null,null,null,null,null,null,null,null,null,null,null,null,null,null,0]
[null,null,null,null,null,null,null,null,null,null,null,null,null,null,null,0]
[null,null,null,null,null,null,null,null,null,null,null,null,null,null,null,0]
[null,null,null,null,null,null,null,null,null,null,null,null,null,null,null,0]
[null,null,null,null,null,null,null,null,null,null,null,null,null,null,null,0]
[null,null,null,null,null,null,null,null,null,null,null,null,null,null,null,0]
[null,null,null,null,null,null,null,null,null,null,null,null,null,null,null,0]
[null,null,null,null,null,null,null,null,null,null,null,null,null,null,null,0]
[null,null,null,null,null,null,null,null,null,null,null,null,null,null,null,0]
[null,null,null,null,null,null,null,null,null,null,null,null,null,null,null,0]
[null,null,null,null,null,null,null,null,null,null,null,null,null,null,null,0]
[null,null,null,null,null,null,null,null,null,null,null,null,null,null,null,0]
[null,null,null,null,null,null,null,null,null,null,null,null,null,null,null,0]
[null,null,null,null,null,null,null,null,null,null,null,null,null,null,null,0]
[null,null,null,null,null,null,null,null,null,null,null,null,null,null,null,0]
[null,null,null,null,null,null,null,null,null,null,null,null,null,null,null,0]
[null,null,null,null,null,null,null,null,null,null,null,null,null,null,null,0]
[null,null,null,null,null,null,null,null,null,null,null,null,null,null,null,0]
[null,null,null,null,null,null,null,null,null,null,null,null,null,null,null,0]
[null,null,null,null,null,null,null,null,null,null,null,null,null,null,null,0]
[null,null,null,null,null,null,null,null,null,null,null,null,null,null,null,0]
[null,null,null,null,null,null,null,null,null,null,null,null,null,null,null,0]
[null,null,null,null,null,null,null,null,null,null,null,null,null,null,null,0]
[null,null,null,null,null,null,null,null,null,null,null,null,null,null,null,0]
[null,null,null,null,null,null,null,null,null,null,null,null,null,null,null,0]
[null,null,null,null,null,null,null,null,null,null,null,null,null,null,null,0]
[null,null,null,null,null,null,null,null,null,null,null,null,null,null,null,0]
[null,null,null,null,null,null,null,null,null,null,null,null,null,null,null,0]
[null,null,null,null,null,null,null,null,null,null,null,null,null,null,null,0]
[null,null,null,null,null,null,null,null,null,null,null,null,null,null,null,0]
[null,null,null,null,null,null,null,null,null,null,null,null,null,null,null,0]
[null,null,null,null,null,null,null,null,null,null,null,null,null,null,null,0]
[null,null,null,null,null,null,null,null,null,null,null,null,null,null,null,0]
[null,null,null,null,null,null,null,null,null,null,null,null,null,null,null,0]
[null,null,null,null,null,null,null,null,null,null,null,null,null,null,null,0]
[null,null,null,null,null,null,null,null,null,null,null,null,null,null,null,0]
[null,null,null,null,null,null,null,null,null,null,null,null,null,null,null,0]
[null,null,null,null,null,null,null,null,null,null,null,null,null,null,null,0]
[null,null,null,null,null,null,null,null,null,null,null,null,null,null,null,0]
[null,null,null,null,null,null,null,null,null,null,null,null,null,null,null,0]
[null,null,null,null,null,null,null,null,null,null,null,null,null,null,null,0]
[null,null,null,null,null,null,null,null,null,null,null,null,null,null,null,0]
[null,null,null,null,null,null,null,null,null,null,null,null,null,null,null,0]
[null,null,null,null,null,null,null,null,null,null,null,null,null,null,null,0]
[null,null,null,null,null,null,null,null,null,null,null,null,null,null,null,{"$f":"IF(N641<=flips,O641^2,0)","v":0}]
[null,null,null,null,null,null,null,null,null,null,null,null,null,null,null,0]
[null,null,null,null,null,null,null,null,null,null,null,null,null,null,null,0]
[null,null,null,null,null,null,null,null,null,null,null,null,null,null,null,0]
[null,null,null,null,null,null,null,null,null,null,null,null,null,null,null,0]
[null,null,null,null,null,null,null,null,null,null,null,null,null,null,null,0]
[null,null,null,null,null,null,null,null,null,null,null,null,null,null,null,0]
[null,null,null,null,null,null,null,null,null,null,null,null,null,null,null,0]
[null,null,null,null,null,null,null,null,null,null,null,null,null,null,null,0]
[null,null,null,null,null,null,null,null,null,null,null,null,null,null,null,0]
[null,null,null,null,null,null,null,null,null,null,null,null,null,null,null,0]
[null,null,null,null,null,null,null,null,null,null,null,null,null,null,null,0]
[null,null,null,null,null,null,null,null,null,null,null,null,null,null,null,0]
[null,null,null,null,null,null,null,null,null,null,null,null,null,null,null,0]
[null,null,null,null,null,null,null,null,null,null,null,null,null,null,null,0]
[null,null,null,null,null,null,null,null,null,null,null,null,null,null,null,0]
[null,null,null,null,null,null,null,null,null,null,null,null,null,null,null,0]
[null,null,null,null,null,null,null,null,null,null,null,null,null,null,null,0]
[null,null,null,null,null,null,null,null,null,null,null,null,null,null,null,0]
[null,null,null,null,null,null,null,null,null,null,null,null,null,null,null,0]
[null,null,null,null,null,null,null,null,null,null,null,null,null,null,null,0]
[null,null,null,null,null,null,null,null,null,null,null,null,null,null,null,0]
[null,null,null,null,null,null,null,null,null,null,null,null,null,null,null,0]
[null,null,null,null,null,null,null,null,null,null,null,null,null,null,null,0]
[null,null,null,null,null,null,null,null,null,null,null,null,null,null,null,0]
[null,null,null,null,null,null,null,null,null,null,null,null,null,null,null,0]
[null,null,null,null,null,null,null,null,null,null,null,null,null,null,null,0]
[null,null,null,null,null,null,null,null,null,null,null,null,null,null,null,0]
[null,null,null,null,null,null,null,null,null,null,null,null,null,null,null,0]
[null,null,null,null,null,null,null,null,null,null,null,null,null,null,null,0]
[null,null,null,null,null,null,null,null,null,null,null,null,null,null,null,0]
[null,null,null,null,null,null,null,null,null,null,null,null,null,null,null,0]
[null,null,null,null,null,null,null,null,null,null,null,null,null,null,null,0]
[null,null,null,null,null,null,null,null,null,null,null,null,null,null,null,0]
[null,null,null,null,null,null,null,null,null,null,null,null,null,null,null,0]
[null,null,null,null,null,null,null,null,null,null,null,null,null,null,null,0]
[null,null,null,null,null,null,null,null,null,null,null,null,null,null,null,0]
[null,null,null,null,null,null,null,null,null,null,null,null,null,null,null,0]
[null,null,null,null,null,null,null,null,null,null,null,null,null,null,null,0]
[null,null,null,null,null,null,null,null,null,null,null,null,null,null,null,0]
[null,null,null,null,null,null,null,null,null,null,null,null,null,null,null,0]
[null,null,null,null,null,null,null,null,null,null,null,null,null,null,null,0]
[null,null,null,null,null,null,null,null,null,null,null,null,null,null,null,0]
[null,null,null,null,null,null,null,null,null,null,null,null,null,null,null,0]
[null,null,null,null,null,null,null,null,null,null,null,null,null,null,null,0]
[null,null,null,null,null,null,null,null,null,null,null,null,null,null,null,0]
[null,null,null,null,null,null,null,null,null,null,null,null,null,null,null,0]
[null,null,null,null,null,null,null,null,null,null,null,null,null,null,null,0]
[null,null,null,null,null,null,null,null,null,null,null,null,null,null,null,0]
[null,null,null,null,null,null,null,null,null,null,null,null,null,null,null,0]
[null,null,null,null,null,null,null,null,null,null,null,null,null,null,null,0]
[null,null,null,null,null,null,null,null,null,null,null,null,null,null,null,0]
[null,null,null,null,null,null,null,null,null,null,null,null,null,null,null,0]
[null,null,null,null,null,null,null,null,null,null,null,null,null,null,null,0]
[null,null,null,null,null,null,null,null,null,null,null,null,null,null,null,0]
[null,null,null,null,null,null,null,null,null,null,null,null,null,null,null,0]
[null,null,null,null,null,null,null,null,null,null,null,null,null,null,null,0]
[null,null,null,null,null,null,null,null,null,null,null,null,null,null,null,0]
[null,null,null,null,null,null,null,null,null,null,null,null,null,null,null,0]
[null,null,null,null,null,null,null,null,null,null,null,null,null,null,null,0]
[null,null,null,null,null,null,null,null,null,null,null,null,null,null,null,0]
[null,null,null,null,null,null,null,null,null,null,null,null,null,null,null,0]
[null,null,null,null,null,null,null,null,null,null,null,null,null,null,null,0]
[null,null,null,null,null,null,null,null,null,null,null,null,null,null,null,0]
[null,null,null,null,null,null,null,null,null,null,null,null,null,null,null,{"$f":"IF(N705<=flips,O705^2,0)","v":0}]
[null,null,null,null,null,null,null,null,null,null,null,null,null,null,null,0]
[null,null,null,null,null,null,null,null,null,null,null,null,null,null,null,0]
[null,null,null,null,null,null,null,null,null,null,null,null,null,null,null,0]
[null,null,null,null,null,null,null,null,null,null,null,null,null,null,null,0]
[null,null,null,null,null,null,null,null,null,null,null,null,null,null,null,0]
[null,null,null,null,null,null,null,null,null,null,null,null,null,null,null,0]
[null,null,null,null,null,null,null,null,null,null,null,null,null,null,null,0]
[null,null,null,null,null,null,null,null,null,null,null,null,null,null,null,0]
[null,null,null,null,null,null,null,null,null,null,null,null,null,null,null,0]
[null,null,null,null,null,null,null,null,null,null,null,null,null,null,null,0]
[null,null,null,null,null,null,null,null,null,null,null,null,null,null,null,0]
[null,null,null,null,null,null,null,null,null,null,null,null,null,null,null,0]
[null,null,null,null,null,null,null,null,null,null,null,null,null,null,null,0]
[null,null,null,null,null,null,null,null,null,null,null,null,null,null,null,0]
[null,null,null,null,null,null,null,null,null,null,null,null,null,null,null,0]
[null,null,null,null,null,null,null,null,null,null,null,null,null,null,null,0]
[null,null,null,null,null,null,null,null,null,null,null,null,null,null,null,0]
[null,null,null,null,null,null,null,null,null,null,null,null,null,null,null,0]
[null,null,null,null,null,null,null,null,null,null,null,null,null,null,null,0]
[null,null,null,null,null,null,null,null,null,null,null,null,null,null,null,0]
[null,null,null,null,null,null,null,null,null,null,null,null,null,null,null,0]
[null,null,null,null,null,null,null,null,null,null,null,null,null,null,null,0]
[null,null,null,null,null,null,null,null,null,null,null,null,null,null,null,0]
[null,null,null,null,null,null,null,null,null,null,null,null,null,null,null,0]
[null,null,null,null,null,null,null,null,null,null,null,null,null,null,null,0]
[null,null,null,null,null,null,null,null,null,null,null,null,null,null,null,0]
[null,null,null,null,null,null,null,null,null,null,null,null,null,null,null,0]
[null,null,null,null,null,null,null,null,null,null,null,null,null,null,null,0]
[null,null,null,null,null,null,null,null,null,null,null,null,null,null,null,0]
[null,null,null,null,null,null,null,null,null,null,null,null,null,null,null,0]
[null,null,null,null,null,null,null,null,null,null,null,null,null,null,null,0]
[null,null,null,null,null,null,null,null,null,null,null,null,null,null,null,0]
[null,null,null,null,null,null,null,null,null,null,null,null,null,null,null,0]
[null,null,null,null,null,null,null,null,null,null,null,null,null,null,null,0]
[null,null,null,null,null,null,null,null,null,null,null,null,null,null,null,0]
[null,null,null,null,null,null,null,null,null,null,null,null,null,null,null,0]
[null,null,null,null,null,null,null,null,null,null,null,null,null,null,null,0]
[null,null,null,null,null,null,null,null,null,null,null,null,null,null,null,0]
[null,null,null,null,null,null,null,null,null,null,null,null,null,null,null,0]
[null,null,null,null,null,null,null,null,null,null,null,null,null,null,null,0]
[null,null,null,null,null,null,null,null,null,null,null,null,null,null,null,0]
[null,null,null,null,null,null,null,null,null,null,null,null,null,null,null,0]
[null,null,null,null,null,null,null,null,null,null,null,null,null,null,null,0]
[null,null,null,null,null,null,null,null,null,null,null,null,null,null,null,0]
[null,null,null,null,null,null,null,null,null,null,null,null,null,null,null,0]
[null,null,null,null,null,null,null,null,null,null,null,null,null,null,null,0]
[null,null,null,null,null,null,null,null,null,null,null,null,null,null,null,0]
[null,null,null,null,null,null,null,null,null,null,null,null,null,null,null,0]
[null,null,null,null,null,null,null,null,null,null,null,null,null,null,null,0]
[null,null,null,null,null,null,null,null,null,null,null,null,null,null,null,0]
[null,null,null,null,null,null,null,null,null,null,null,null,null,null,null,0]
[null,null,null,null,null,null,null,null,null,null,null,null,null,null,null,0]
[null,null,null,null,null,null,null,null,null,null,null,null,null,null,null,0]
[null,null,null,null,null,null,null,null,null,null,null,null,null,null,null,0]
[null,null,null,null,null,null,null,null,null,null,null,null,null,null,null,0]
[null,null,null,null,null,null,null,null,null,null,null,null,null,null,null,0]
[null,null,null,null,null,null,null,null,null,null,null,null,null,null,null,0]
[null,null,null,null,null,null,null,null,null,null,null,null,null,null,null,0]
[null,null,null,null,null,null,null,null,null,null,null,null,null,null,null,0]
[null,null,null,null,null,null,null,null,null,null,null,null,null,null,null,0]
[null,null,null,null,null,null,null,null,null,null,null,null,null,null,null,0]
[null,null,null,null,null,null,null,null,null,null,null,null,null,null,null,0]
[null,null,null,null,null,null,null,null,null,null,null,null,null,null,null,0]
[null,null,null,null,null,null,null,null,null,null,null,null,null,null,null,{"$f":"IF(N769<=flips,O769^2,0)","v":0}]
[null,null,null,null,null,null,null,null,null,null,null,null,null,null,null,0]
[null,null,null,null,null,null,null,null,null,null,null,null,null,null,null,0]
[null,null,null,null,null,null,null,null,null,null,null,null,null,null,null,0]
[null,null,null,null,null,null,null,null,null,null,null,null,null,null,null,0]
[null,null,null,null,null,null,null,null,null,null,null,null,null,null,null,0]
[null,null,null,null,null,null,null,null,null,null,null,null,null,null,null,0]
[null,null,null,null,null,null,null,null,null,null,null,null,null,null,null,0]
[null,null,null,null,null,null,null,null,null,null,null,null,null,null,null,0]
[null,null,null,null,null,null,null,null,null,null,null,null,null,null,null,0]
[null,null,null,null,null,null,null,null,null,null,null,null,null,null,null,0]
[null,null,null,null,null,null,null,null,null,null,null,null,null,null,null,0]
[null,null,null,null,null,null,null,null,null,null,null,null,null,null,null,0]
[null,null,null,null,null,null,null,null,null,null,null,null,null,null,null,0]
[null,null,null,null,null,null,null,null,null,null,null,null,null,null,null,0]
[null,null,null,null,null,null,null,null,null,null,null,null,null,null,null,0]
[null,null,null,null,null,null,null,null,null,null,null,null,null,null,null,0]
[null,null,null,null,null,null,null,null,null,null,null,null,null,null,null,0]
[null,null,null,null,null,null,null,null,null,null,null,null,null,null,null,0]
[null,null,null,null,null,null,null,null,null,null,null,null,null,null,null,0]
[null,null,null,null,null,null,null,null,null,null,null,null,null,null,null,0]
[null,null,null,null,null,null,null,null,null,null,null,null,null,null,null,0]
[null,null,null,null,null,null,null,null,null,null,null,null,null,null,null,0]
[null,null,null,null,null,null,null,null,null,null,null,null,null,null,null,0]
[null,null,null,null,null,null,null,null,null,null,null,null,null,null,null,0]
[null,null,null,null,null,null,null,null,null,null,null,null,null,null,null,0]
[null,null,null,null,null,null,null,null,null,null,null,null,null,null,null,0]
[null,null,null,null,null,null,null,null,null,null,null,null,null,null,null,0]
[null,null,null,null,null,null,null,null,null,null,null,null,null,null,null,0]
[null,null,null,null,null,null,null,null,null,null,null,null,null,null,null,0]
[null,null,null,null,null,null,null,null,null,null,null,null,null,null,null,0]
[null,null,null,null,null,null,null,null,null,null,null,null,null,null,null,0]
[null,null,null,null,null,null,null,null,null,null,null,null,null,null,null,0]
[null,null,null,null,null,null,null,null,null,null,null,null,null,null,null,0]
[null,null,null,null,null,null,null,null,null,null,null,null,null,null,null,0]
[null,null,null,null,null,null,null,null,null,null,null,null,null,null,null,0]
[null,null,null,null,null,null,null,null,null,null,null,null,null,null,null,0]
[null,null,null,null,null,null,null,null,null,null,null,null,null,null,null,0]
[null,null,null,null,null,null,null,null,null,null,null,null,null,null,null,0]
[null,null,null,null,null,null,null,null,null,null,null,null,null,null,null,0]
[null,null,null,null,null,null,null,null,null,null,null,null,null,null,null,0]
[null,null,null,null,null,null,null,null,null,null,null,null,null,null,null,0]
[null,null,null,null,null,null,null,null,null,null,null,null,null,null,null,0]
[null,null,null,null,null,null,null,null,null,null,null,null,null,null,null,0]
[null,null,null,null,null,null,null,null,null,null,null,null,null,null,null,0]
[null,null,null,null,null,null,null,null,null,null,null,null,null,null,null,0]
[null,null,null,null,null,null,null,null,null,null,null,null,null,null,null,0]
[null,null,null,null,null,null,null,null,null,null,null,null,null,null,null,0]
[null,null,null,null,null,null,null,null,null,null,null,null,null,null,null,0]
[null,null,null,null,null,null,null,null,null,null,null,null,null,null,null,0]
[null,null,null,null,null,null,null,null,null,null,null,null,null,null,null,0]
[null,null,null,null,null,null,null,null,null,null,null,null,null,null,null,0]
[null,null,null,null,null,null,null,null,null,null,null,null,null,null,null,0]
[null,null,null,null,null,null,null,null,null,null,null,null,null,null,null,0]
[null,null,null,null,null,null,null,null,null,null,null,null,null,null,null,0]
[null,null,null,null,null,null,null,null,null,null,null,null,null,null,null,0]
[null,null,null,null,null,null,null,null,null,null,null,null,null,null,null,0]
[null,null,null,null,null,null,null,null,null,null,null,null,null,null,null,0]
[null,null,null,null,null,null,null,null,null,null,null,null,null,null,null,0]
[null,null,null,null,null,null,null,null,null,null,null,null,null,null,null,0]
[null,null,null,null,null,null,null,null,null,null,null,null,null,null,null,0]
[null,null,null,null,null,null,null,null,null,null,null,null,null,null,null,0]
[null,null,null,null,null,null,null,null,null,null,null,null,null,null,null,0]
[null,null,null,null,null,null,null,null,null,null,null,null,null,null,null,0]
[null,null,null,null,null,null,null,null,null,null,null,null,null,null,null,{"$f":"IF(N833<=flips,O833^2,0)","v":0}]
[null,null,null,null,null,null,null,null,null,null,null,null,null,null,null,0]
[null,null,null,null,null,null,null,null,null,null,null,null,null,null,null,0]
[null,null,null,null,null,null,null,null,null,null,null,null,null,null,null,0]
[null,null,null,null,null,null,null,null,null,null,null,null,null,null,null,0]
[null,null,null,null,null,null,null,null,null,null,null,null,null,null,null,0]
[null,null,null,null,null,null,null,null,null,null,null,null,null,null,null,0]
[null,null,null,null,null,null,null,null,null,null,null,null,null,null,null,0]
[null,null,null,null,null,null,null,null,null,null,null,null,null,null,null,0]
[null,null,null,null,null,null,null,null,null,null,null,null,null,null,null,0]
[null,null,null,null,null,null,null,null,null,null,null,null,null,null,null,0]
[null,null,null,null,null,null,null,null,null,null,null,null,null,null,null,0]
[null,null,null,null,null,null,null,null,null,null,null,null,null,null,null,0]
[null,null,null,null,null,null,null,null,null,null,null,null,null,null,null,0]
[null,null,null,null,null,null,null,null,null,null,null,null,null,null,null,0]
[null,null,null,null,null,null,null,null,null,null,null,null,null,null,null,0]
[null,null,null,null,null,null,null,null,null,null,null,null,null,null,null,0]
[null,null,null,null,null,null,null,null,null,null,null,null,null,null,null,0]
[null,null,null,null,null,null,null,null,null,null,null,null,null,null,null,0]
[null,null,null,null,null,null,null,null,null,null,null,null,null,null,null,0]
[null,null,null,null,null,null,null,null,null,null,null,null,null,null,null,0]
[null,null,null,null,null,null,null,null,null,null,null,null,null,null,null,0]
[null,null,null,null,null,null,null,null,null,null,null,null,null,null,null,0]
[null,null,null,null,null,null,null,null,null,null,null,null,null,null,null,0]
[null,null,null,null,null,null,null,null,null,null,null,null,null,null,null,0]
[null,null,null,null,null,null,null,null,null,null,null,null,null,null,null,0]
[null,null,null,null,null,null,null,null,null,null,null,null,null,null,null,0]
[null,null,null,null,null,null,null,null,null,null,null,null,null,null,null,0]
[null,null,null,null,null,null,null,null,null,null,null,null,null,null,null,0]
[null,null,null,null,null,null,null,null,null,null,null,null,null,null,null,0]
[null,null,null,null,null,null,null,null,null,null,null,null,null,null,null,0]
[null,null,null,null,null,null,null,null,null,null,null,null,null,null,null,0]
[null,null,null,null,null,null,null,null,null,null,null,null,null,null,null,0]
[null,null,null,null,null,null,null,null,null,null,null,null,null,null,null,0]
[null,null,null,null,null,null,null,null,null,null,null,null,null,null,null,0]
[null,null,null,null,null,null,null,null,null,null,null,null,null,null,null,0]
[null,null,null,null,null,null,null,null,null,null,null,null,null,null,null,0]
[null,null,null,null,null,null,null,null,null,null,null,null,null,null,null,0]
[null,null,null,null,null,null,null,null,null,null,null,null,null,null,null,0]
[null,null,null,null,null,null,null,null,null,null,null,null,null,null,null,0]
[null,null,null,null,null,null,null,null,null,null,null,null,null,null,null,0]
[null,null,null,null,null,null,null,null,null,null,null,null,null,null,null,0]
[null,null,null,null,null,null,null,null,null,null,null,null,null,null,null,0]
[null,null,null,null,null,null,null,null,null,null,null,null,null,null,null,0]
[null,null,null,null,null,null,null,null,null,null,null,null,null,null,null,0]
[null,null,null,null,null,null,null,null,null,null,null,null,null,null,null,0]
[null,null,null,null,null,null,null,null,null,null,null,null,null,null,null,0]
[null,null,null,null,null,null,null,null,null,null,null,null,null,null,null,0]
[null,null,null,null,null,null,null,null,null,null,null,null,null,null,null,0]
[null,null,null,null,null,null,null,null,null,null,null,null,null,null,null,0]
[null,null,null,null,null,null,null,null,null,null,null,null,null,null,null,0]
[null,null,null,null,null,null,null,null,null,null,null,null,null,null,null,0]
[null,null,null,null,null,null,null,null,null,null,null,null,null,null,null,0]
[null,null,null,null,null,null,null,null,null,null,null,null,null,null,null,0]
[null,null,null,null,null,null,null,null,null,null,null,null,null,null,null,0]
[null,null,null,null,null,null,null,null,null,null,null,null,null,null,null,0]
[null,null,null,null,null,null,null,null,null,null,null,null,null,null,null,0]
[null,null,null,null,null,null,null,null,null,null,null,null,null,null,null,0]
[null,null,null,null,null,null,null,null,null,null,null,null,null,null,null,0]
[null,null,null,null,null,null,null,null,null,null,null,null,null,null,null,0]
[null,null,null,null,null,null,null,null,null,null,null,null,null,null,null,0]
[null,null,null,null,null,null,null,null,null,null,null,null,null,null,null,0]
[null,null,null,null,null,null,null,null,null,null,null,null,null,null,null,0]
[null,null,null,null,null,null,null,null,null,null,null,null,null,null,null,0]
[null,null,null,null,null,null,null,null,null,null,null,null,null,null,null,{"$f":"IF(N897<=flips,O897^2,0)","v":0}]
[null,null,null,null,null,null,null,null,null,null,null,null,null,null,null,0]
[null,null,null,null,null,null,null,null,null,null,null,null,null,null,null,0]
[null,null,null,null,null,null,null,null,null,null,null,null,null,null,null,0]
[null,null,null,null,null,null,null,null,null,null,null,null,null,null,null,0]
[null,null,null,null,null,null,null,null,null,null,null,null,null,null,null,0]
[null,null,null,null,null,null,null,null,null,null,null,null,null,null,null,0]
[null,null,null,null,null,null,null,null,null,null,null,null,null,null,null,0]
[null,null,null,null,null,null,null,null,null,null,null,null,null,null,null,0]
[null,null,null,null,null,null,null,null,null,null,null,null,null,null,null,0]
[null,null,null,null,null,null,null,null,null,null,null,null,null,null,null,0]
[null,null,null,null,null,null,null,null,null,null,null,null,null,null,null,0]
[null,null,null,null,null,null,null,null,null,null,null,null,null,null,null,0]
[null,null,null,null,null,null,null,null,null,null,null,null,null,null,null,0]
[null,null,null,null,null,null,null,null,null,null,null,null,null,null,null,0]
[null,null,null,null,null,null,null,null,null,null,null,null,null,null,null,0]
[null,null,null,null,null,null,null,null,null,null,null,null,null,null,null,0]
[null,null,null,null,null,null,null,null,null,null,null,null,null,null,null,0]
[null,null,null,null,null,null,null,null,null,null,null,null,null,null,null,0]
[null,null,null,null,null,null,null,null,null,null,null,null,null,null,null,0]
[null,null,null,null,null,null,null,null,null,null,null,null,null,null,null,0]
[null,null,null,null,null,null,null,null,null,null,null,null,null,null,null,0]
[null,null,null,null,null,null,null,null,null,null,null,null,null,null,null,0]
[null,null,null,null,null,null,null,null,null,null,null,null,null,null,null,0]
[null,null,null,null,null,null,null,null,null,null,null,null,null,null,null,0]
[null,null,null,null,null,null,null,null,null,null,null,null,null,null,null,0]
[null,null,null,null,null,null,null,null,null,null,null,null,null,null,null,0]
[null,null,null,null,null,null,null,null,null,null,null,null,null,null,null,0]
[null,null,null,null,null,null,null,null,null,null,null,null,null,null,null,0]
[null,null,null,null,null,null,null,null,null,null,null,null,null,null,null,0]
[null,null,null,null,null,null,null,null,null,null,null,null,null,null,null,0]
[null,null,null,null,null,null,null,null,null,null,null,null,null,null,null,0]
[null,null,null,null,null,null,null,null,null,null,null,null,null,null,null,0]
[null,null,null,null,null,null,null,null,null,null,null,null,null,null,null,0]
[null,null,null,null,null,null,null,null,null,null,null,null,null,null,null,0]
[null,null,null,null,null,null,null,null,null,null,null,null,null,null,null,0]
[null,null,null,null,null,null,null,null,null,null,null,null,null,null,null,0]
[null,null,null,null,null,null,null,null,null,null,null,null,null,null,null,0]
[null,null,null,null,null,null,null,null,null,null,null,null,null,null,null,0]
[null,null,null,null,null,null,null,null,null,null,null,null,null,null,null,0]
[null,null,null,null,null,null,null,null,null,null,null,null,null,null,null,0]
[null,null,null,null,null,null,null,null,null,null,null,null,null,null,null,0]
[null,null,null,null,null,null,null,null,null,null,null,null,null,null,null,0]
[null,null,null,null,null,null,null,null,null,null,null,null,null,null,null,0]
[null,null,null,null,null,null,null,null,null,null,null,null,null,null,null,0]
[null,null,null,null,null,null,null,null,null,null,null,null,null,null,null,0]
[null,null,null,null,null,null,null,null,null,null,null,null,null,null,null,0]
[null,null,null,null,null,null,null,null,null,null,null,null,null,null,null,0]
[null,null,null,null,null,null,null,null,null,null,null,null,null,null,null,0]
[null,null,null,null,null,null,null,null,null,null,null,null,null,null,null,0]
[null,null,null,null,null,null,null,null,null,null,null,null,null,null,null,0]
[null,null,null,null,null,null,null,null,null,null,null,null,null,null,null,0]
[null,null,null,null,null,null,null,null,null,null,null,null,null,null,null,0]
[null,null,null,null,null,null,null,null,null,null,null,null,null,null,null,0]
[null,null,null,null,null,null,null,null,null,null,null,null,null,null,null,0]
[null,null,null,null,null,null,null,null,null,null,null,null,null,null,null,0]
[null,null,null,null,null,null,null,null,null,null,null,null,null,null,null,0]
[null,null,null,null,null,null,null,null,null,null,null,null,null,null,null,0]
[null,null,null,null,null,null,null,null,null,null,null,null,null,null,null,0]
[null,null,null,null,null,null,null,null,null,null,null,null,null,null,null,0]
[null,null,null,null,null,null,null,null,null,null,null,null,null,null,null,0]
[null,null,null,null,null,null,null,null,null,null,null,null,null,null,null,0]
[null,null,null,null,null,null,null,null,null,null,null,null,null,null,null,0]
[null,null,null,null,null,null,null,null,null,null,null,null,null,null,null,0]
[null,null,null,null,null,null,null,null,null,null,null,null,null,null,null,{"$f":"IF(N961<=flips,O961^2,0)","v":0}]
[null,null,null,null,null,null,null,null,null,null,null,null,null,null,null,0]
[null,null,null,null,null,null,null,null,null,null,null,null,null,null,null,0]
[null,null,null,null,null,null,null,null,null,null,null,null,null,null,null,0]
[null,null,null,null,null,null,null,null,null,null,null,null,null,null,null,0]
[null,null,null,null,null,null,null,null,null,null,null,null,null,null,null,0]
[null,null,null,null,null,null,null,null,null,null,null,null,null,null,null,0]
[null,null,null,null,null,null,null,null,null,null,null,null,null,null,null,0]
[null,null,null,null,null,null,null,null,null,null,null,null,null,null,null,0]
[null,null,null,null,null,null,null,null,null,null,null,null,null,null,null,0]
[null,null,null,null,null,null,null,null,null,null,null,null,null,null,null,0]
[null,null,null,null,null,null,null,null,null,null,null,null,null,null,null,0]
[null,null,null,null,null,null,null,null,null,null,null,null,null,null,null,0]
[null,null,null,null,null,null,null,null,null,null,null,null,null,null,null,0]
[null,null,null,null,null,null,null,null,null,null,null,null,null,null,null,0]
[null,null,null,null,null,null,null,null,null,null,null,null,null,null,null,0]
[null,null,null,null,null,null,null,null,null,null,null,null,null,null,null,0]
[null,null,null,null,null,null,null,null,null,null,null,null,null,null,null,0]
[null,null,null,null,null,null,null,null,null,null,null,null,null,null,null,0]
[null,null,null,null,null,null,null,null,null,null,null,null,null,null,null,0]
[null,null,null,null,null,null,null,null,null,null,null,null,null,null,null,0]
[null,null,null,null,null,null,null,null,null,null,null,null,null,null,null,0]
[null,null,null,null,null,null,null,null,null,null,null,null,null,null,null,0]
[null,null,null,null,null,null,null,null,null,null,null,null,null,null,null,0]
[null,null,null,null,null,null,null,null,null,null,null,null,null,null,null,0]
[null,null,null,null,null,null,null,null,null,null,null,null,null,null,null,0]
[null,null,null,null,null,null,null,null,null,null,null,null,null,null,null,0]
[null,null,null,null,null,null,null,null,null,null,null,null,null,null,null,0]
[null,null,null,null,null,null,null,null,null,null,null,null,null,null,null,0]
[null,null,null,null,null,null,null,null,null,null,null,null,null,null,null,0]
[null,null,null,null,null,null,null,null,null,null,null,null,null,null,null,0]
[null,null,null,null,null,null,null,null,null,null,null,null,null,null,null,0]
[null,null,null,null,null,null,null,null,null,null,null,null,null,null,null,0]
[null,null,null,null,null,null,null,null,null,null,null,null,null,null,null,0]
[null,null,null,null,null,null,null,null,null,null,null,null,null,null,null,0]
[null,null,null,null,null,null,null,null,null,null,null,null,null,null,null,0]
[null,null,null,null,null,null,null,null,null,null,null,null,null,null,null,0]
[null,null,null,null,null,null,null,null,null,null,null,null,null,null,null,0]
[null,null,null,null,null,null,null,null,null,null,null,null,null,null,null,0]
[null,null,null,null,null,null,null,null,null,null,null,null,null,null,null,0]

{"sheet":"Sheet3","index":2,"n_rows":0,"n_cols":0,"rows_kept":0,"cut":false,"hidden":false,"merged":[]}

{"sheet":"Sheet4","index":3,"n_rows":0,"n_cols":0,"rows_kept":0,"cut":false,"hidden":false,"merged":[]}